fUST/lending_fUST_20240412
["ID","MTS","AMOUNT","RATE_DAILY","PERIOD"]
[322228422,1712901032969,-1029.69842294,0.00027297,2]
[322228423,1712901032979,-428.69389439,0.00027297,2]
[322228425,1712901038602,-86.75915133,0.00027297,2]
[322228426,1712901038712,-202.8732917,0.000273,2]
[322228427,1712901038723,-65.57365425,0.00027395,2]
[322228430,1712901038981,-1428.13425117,0.00027395,2]
[322228432,1712901038991,-467.72138574,0.00027395,2]
[322228435,1712901039001,-247.89343673,0.00027395,2]
[322228438,1712901039011,-156.63566121,0.00027395,2]
[322228440,1712901039021,-155.26211776,0.00027395,2]
[322228443,1712901039031,-155.09610642,0.00027395,2]
[322228446,1712901039040,-172.37176064,0.00027395,2]
[322228448,1712901039049,-155.48020431,0.00027395,2]
[322228450,1712901039058,-163.23661624,0.00027395,2]
[322228452,1712901039068,-155.46108526,0.00027395,2]
[322228454,1712901039077,-155.26904192,0.00027395,2]
[322228456,1712901039087,-156.90635773,0.00027395,2]
[322228458,1712901039096,-155.0,0.00027395,2]
[322228459,1712901039106,-68.57197487,0.00027395,2]
[322228460,1712901039168,-33.89510154,0.00027395,2]
[322228570,1712901046027,-26.64076599,0.00027395,2]
[322228611,1712901572799,47.35969794,0.00026383,15]
[322228612,1712901572820,152.64030206,0.00026383,15]
[322228613,1712901624965,125.1050021,0.00027532,30]
[322228614,1712902051122,-467.23792428,0.00025431,2]
[322228615,1712902051147,-594.50601272,0.00025432,2]
[322228616,1712902051172,-372.15449153,0.00026367,2]
[322228617,1712902051195,-166.52768004,0.00027197,2]
[322228618,1712902051218,-2000.0,0.00027297,2]
[322228619,1712902051245,-1094.78620314,0.00027297,2]
[322228620,1712902051271,-300.0,0.00027394,2]
[322228621,1712902051307,-300.0,0.00027394,2]
[322228622,1712902051332,-52.74318807,0.00027395,2]
[322228623,1712902051355,-185.90652216,0.00027395,2]
[322228624,1712902051377,-188.55903056,0.00027395,2]
[322228625,1712902051399,-182.12536688,0.00027395,2]
[322228626,1712902051420,-193.94460085,0.00027395,2]
[322228627,1712902051441,-382.48752556,0.00027395,2]
[322228628,1712902051462,-211.31820382,0.00027395,2]
[322228629,1712902051484,-207.08709494,0.00027395,2]
[322228630,1712902051504,-218.46039736,0.00027395,2]
[322228631,1712902051528,-244.09537429,0.00027395,2]
[322228632,1712902051548,-279.74614185,0.00027395,2]
[322228633,1712902051570,-313.75026018,0.00027395,2]
[322228634,1712902051591,-248.89817661,0.00027395,2]
[322228635,1712902051613,-303.95639067,0.00027395,2]
[322228636,1712902051635,-272.98929388,0.00027395,2]
[322228637,1712902051657,-409.14954669,0.00027395,2]
[322228638,1712902051677,-438.3112332,0.00027395,4]
[322228639,1712902051697,-469.62367985,0.00027395,2]
[322228640,1712902051719,-291.66167885,0.00027395,2]
[322228641,1712902135034,200.0,0.00026397,15]
[322228696,1712902237792,-220.30796474,0.00026397,2]
[322228697,1712902237805,-335.51142884,0.00027297,2]
[322228698,1712902237816,-2170.905566,0.00027394,2]
[322228699,1712902237827,-300.0,0.00027394,2]
[322228700,1712902237839,-300.0,0.00027394,2]
[322228701,1712902237850,-56.59854828,0.00027395,2]
[322228702,1712902237863,-552.14952452,0.00027395,2]
[322228703,1712902237874,-426.32025896,0.00027395,2]
[322228704,1712902237886,-250.0,0.00027395,2]
[322228705,1712902237898,-198.28135561,0.00027395,2]
[322228706,1712902237909,-552.14824761,0.00027395,2]
[322228707,1712902237921,-535.64352173,0.00027395,2]
[322228708,1712902237932,-380.33928303,0.00027395,2]
[322228709,1712902237943,-1010.42466005,0.00027396,2]
[322228710,1712902237955,-1878.05987457,0.00027396,2]
[322228711,1712902237966,-155.84563811,0.00027396,2]
[322228712,1712902237977,-551.69945336,0.00027396,2]
[322228713,1712902237989,-208.6181205,0.00027396,2]
[322228714,1712902238000,-406.56775837,0.00027396,2]
[322228715,1712902238012,-500.0,0.00027396,2]
[322228716,1712902238024,-500.0,0.00027396,2]
[322228717,1712902238035,-328.34111415,0.00027396,2]
[322228718,1712902238047,-243.91979073,0.00027396,2]
[322228719,1712902238058,-576.26736217,0.00027396,2]
[322228720,1712902238070,-500.0,0.00027396,2]
[322228721,1712902238082,-270.91251922,0.00027396,2]
[322228722,1712902238093,-500.0,0.00027396,2]
[322228723,1712902238105,-187.17177939,0.00027396,2]
[322228724,1712902238116,-500.0,0.00027396,2]
[322228725,1712902238127,-500.0,0.00027396,2]
[322228726,1712902238140,-500.0,0.00027396,2]
[322228727,1712902238152,-467.00720891,0.00027396,2]
[322228728,1712902238165,-500.0,0.00027397,2]
[322228729,1712902238177,-500.0,0.00027397,2]
[322228730,1712902238189,-500.0,0.00027397,2]
[322228731,1712902238201,-500.0,0.00027397,2]
[322228732,1712902238212,-500.0,0.00027397,2]
[322228733,1712902238223,-500.0,0.00027397,2]
[322228734,1712902238233,-500.0,0.00027397,2]
[322228735,1712902238243,-500.0,0.00027397,2]
[322228736,1712902238252,-503.61527908,0.00027397,2]
[322228737,1712902238381,-500.0,0.00027397,2]
[322228738,1712902238396,-500.0,0.00027397,2]
[322228739,1712902238406,-500.0,0.00027397,2]
[322228740,1712902238418,-500.0,0.00027397,2]
[322228741,1712902238428,-412.15923293,0.00027397,2]
[322228743,1712902238437,-501.80213069,0.00027397,2]
[322228745,1712902238447,-481.75843307,0.00027397,2]
[322228746,1712902238458,-505.12415517,0.00027397,2]
[322228747,1712902238469,-509.44246151,0.00027397,2]
[322228748,1712902238478,-212.64195582,0.00027397,2]
[322228749,1712902238489,-500.0,0.00027397,2]
[322228750,1712902238500,-503.13254039,0.00027397,2]
[322228751,1712902238511,-1619.3,0.00027397,2]
[322228752,1712902238520,-500.0,0.00027397,2]
[322228753,1712902238531,-500.0,0.00027397,2]
[322228754,1712902238542,-501.57523464,0.00027397,2]
[322228755,1712902238553,-500.0,0.00027397,2]
[322228756,1712902238564,-381.56469554,0.00027397,2]
[322228757,1712902238574,-506.57900694,0.00027397,2]
[322228758,1712902238583,-500.0,0.00027397,2]
[322228759,1712902238592,-500.0,0.00027397,2]
[322228760,1712902238603,-500.0,0.00027397,2]
[322228761,1712902238614,-504.27931502,0.00027397,2]
[322228762,1712902238623,-500.0,0.00027397,2]
[322228763,1712902238632,-500.0,0.00027397,2]
[322228764,1712902238641,-500.0,0.00027397,2]
[322228765,1712902238651,-500.0,0.00027397,2]
[322228766,1712902238661,-500.0,0.00027397,2]
[322228767,1712902238670,-505.3431569,0.00027397,2]
[322228768,1712902238679,-500.0,0.00027397,2]
[322228769,1712902238688,-500.0,0.00027397,2]
[322228770,1712902238697,-500.0,0.00027397,2]
[322228771,1712902238707,-500.80418685,0.00027397,2]
[322228772,1712902238716,-500.0,0.00027397,2]
[322228773,1712902238725,-500.0,0.00027397,2]
[322228774,1712902238735,-151.727212,0.00027397,2]
[322228775,1712902238744,-500.0,0.00027397,2]
[322228776,1712902238754,-500.0,0.00027397,2]
[322228777,1712902238764,-500.0,0.00027397,2]
[322228778,1712902238775,-500.0,0.00027397,2]
[322228779,1712902238785,-500.0,0.00027397,2]
[322228780,1712902238794,-500.0,0.00027397,2]
[322228781,1712902238803,-500.0,0.00027397,2]
[322228782,1712902238814,-500.0,0.00027397,2]
[322228783,1712902238824,-500.0,0.00027397,2]
[322228784,1712902238834,-500.0,0.00027397,2]
[322228785,1712902238843,-500.0,0.00027397,2]
[322228786,1712902238852,-500.0,0.00027397,2]
[322228787,1712902238861,-378.41184898,0.00027397,2]
[322228788,1712902238950,-21.99739077,0.00027397,2]
[322228789,1712902238959,-501.24402991,0.00027397,2]
[322228790,1712902238968,-500.0,0.00027397,2]
[322228791,1712902238978,-500.0,0.00027397,2]
[322228792,1712902238987,-434.09416555,0.00027397,2]
[322228793,1712902238996,-500.0,0.00027397,2]
[322228794,1712902239005,-500.0,0.00027397,2]
[322228795,1712902239014,-157.82679835,0.00027397,2]
[322228796,1712902239023,-22.69366237,0.00027397,2]
[322228797,1712902239036,-477.30633763,0.00027397,2]
[322228798,1712902239045,-500.0,0.00027397,2]
[322228799,1712902239053,-519.48,0.00027397,2]
[322228800,1712902239062,-69.57033204,0.00027397,2]
[322228801,1712902239073,-430.42966796,0.00027397,2]
[322228802,1712902239082,-500.0,0.00027397,2]
[322228803,1712902239091,-500.0,0.00027397,2]
[322228804,1712902239101,-605.66731339,0.00027397,2]
[322228805,1712902239110,-523.44475546,0.00027397,2]
[322228806,1712902239119,-504.39479272,0.00027397,2]
[322228807,1712902239127,-503.39901121,0.00027397,2]
[322228808,1712902239136,-501.09424891,0.00027397,2]
[322228809,1712902239145,-197.07524805,0.00027397,2]
[322228810,1712902239155,-425.34716485,0.00027397,2]
[322228811,1712902239165,-500.0,0.00027397,2]
[322228812,1712902239174,-500.0,0.00027397,2]
[322228813,1712902239182,-500.0,0.00027397,2]
[322228814,1712902239191,-151.0,0.00027397,2]
[322228815,1712902239200,-152.299952,0.00027397,2]
[322228816,1712902239209,-294.73960264,0.00027397,2]
[322228817,1712902239221,-205.26039736,0.00027397,2]
[322228818,1712902239230,-503.16549345,0.00027397,2]
[322228819,1712902239240,-500.0,0.00027397,2]
[322228820,1712902239250,-507.54362206,0.00027397,2]
[322228821,1712902239260,-151.0,0.00027397,2]
[322228822,1712902239269,-158.121561,0.00027397,2]
[322228823,1712902239279,-227.44808483,0.00027397,2]
[322228824,1712902239289,-500.0,0.00027397,2]
[322228825,1712902239301,-500.0,0.00027397,2]
[322228826,1712902239310,-500.0,0.00027397,2]
[322228827,1712902239320,-512.94135916,0.00027397,2]
[322228828,1712902239329,-500.0,0.00027397,2]
[322228829,1712902239338,-504.18921933,0.00027397,2]
[322228830,1712902239347,-500.0,0.00027397,2]
[322228831,1712902239356,-500.0,0.00027397,2]
[322228832,1712902239367,-301.24202148,0.00027397,2]
[322228834,1712902239376,-507.81728769,0.00027397,2]
[322228835,1712902239385,-500.0,0.00027397,2]
[322228836,1712902239394,-507.9511387,0.00027397,2]
[322228837,1712902239403,-500.0,0.00027397,2]
[322228838,1712902239414,-500.0,0.00027397,2]
[322228839,1712902239423,-500.0,0.00027397,2]
[322228840,1712902239432,-500.0,0.00027397,2]
[322228841,1712902239441,-364.82421455,0.00027397,2]
[322228842,1712902239450,-336.8899733,0.00027397,2]
[322228843,1712902239459,-592.78144405,0.00027397,2]
[322228844,1712902239468,-500.0,0.00027397,2]
[322228845,1712902239477,-223.28961147,0.00027397,2]
[322228846,1712902239486,-500.0,0.00027397,2]
[322228847,1712902239495,-200.4007152,0.00027397,2]
[322228848,1712902239504,-500.0,0.00027397,2]
[322228849,1712902239513,-500.0,0.00027397,2]
[322228851,1712902239522,-500.0,0.00027397,2]
[322228852,1712902239531,-500.0,0.00027397,2]
[322228853,1712902239540,-500.0,0.00027397,2]
[322228854,1712902239549,-500.0,0.00027397,2]
[322228855,1712902239558,-502.38772786,0.00027397,2]
[322228856,1712902239567,-501.01695439,0.00027397,2]
[322228857,1712902239576,-500.0,0.00027397,2]
[322228858,1712902239585,-502.20870567,0.00027397,2]
[322228859,1712902239594,-291.13469965,0.00027397,2]
[322228860,1712902239603,-500.0,0.00027397,2]
[322228861,1712902239611,-549.85053194,0.00027397,2]
[322228862,1712902239620,-500.0,0.00027397,2]
[322228863,1712902239630,-500.0,0.00027397,2]
[322228864,1712902239639,-181.22679351,0.00027397,2]
[322228865,1712902239648,-500.0,0.00027397,2]
[322228866,1712902239659,-1457.36,0.00027397,2]
[322228867,1712902239667,-500.0,0.00027397,2]
[322228868,1712902239676,-151.0,0.00027397,2]
[322228869,1712902239685,-151.0,0.00027397,2]
[322228870,1712902239696,-151.0,0.00027397,2]
[322228871,1712902239706,-151.0,0.00027397,2]
[322228872,1712902239716,-151.0,0.00027397,2]
[322228873,1712902239726,-500.0,0.00027397,2]
[322228874,1712902239735,-151.0,0.00027397,2]
[322228875,1712902239744,-151.0,0.00027397,2]
[322228876,1712902239753,-501.63042436,0.00027397,2]
[322228877,1712902239762,-500.0,0.00027397,2]
[322228878,1712902239771,-151.0,0.00027397,2]
[322228879,1712902239780,-151.0,0.00027397,2]
[322228880,1712902239789,-151.0,0.00027397,2]
[322228881,1712902239798,-300.31193,0.00027397,2]
[322228882,1712902239807,-500.0,0.00027397,2]
[322228883,1712902239817,-500.0,0.00027397,2]
[322228884,1712902239826,-500.0,0.00027397,2]
[322228885,1712902239836,-501.25761997,0.00027397,2]
[322228886,1712902239845,-516.26,0.00027397,2]
[322228887,1712902239854,-510.11726289,0.00027397,2]
[322228888,1712902239864,-500.0,0.00027397,2]
[322228889,1712902239873,-500.0,0.00027397,2]
[322228890,1712902239885,-500.0,0.00027397,2]
[322228891,1712902239895,-252.71764699,0.00027397,2]
[322228892,1712902239905,-500.0,0.00027397,2]
[322228893,1712902239916,-500.0,0.00027397,2]
[322228894,1712902239924,-500.0,0.00027397,2]
[322228895,1712902239933,-500.0,0.00027397,2]
[322228896,1712902239942,-272.11711874,0.00027397,2]
[322228897,1712902239959,-227.88288126,0.00027397,2]
[322228898,1712902239971,-501.75017037,0.00027397,2]
[322228899,1712902239981,-500.0,0.00027397,2]
[322228900,1712902239990,-501.40432052,0.00027397,2]
[322228901,1712902240001,-481.33000798,0.00027397,2]
[322228902,1712902240010,-500.0,0.00027397,2]
[322228903,1712902240021,-500.0,0.00027397,2]
[322228904,1712902240030,-500.0,0.00027397,2]
[322228905,1712902240041,-503.34632055,0.00027397,2]
[322228906,1712902240051,-501.57957739,0.00027397,2]
[322228907,1712902240061,-500.0,0.00027397,2]
[322228908,1712902240072,-500.0,0.00027397,2]
[322228909,1712902240083,-596.08866469,0.00027397,2]
[322228910,1712902240093,-500.0,0.00027397,2]
[322228911,1712902240102,-164.99110082,0.00027397,2]
[322228912,1712902240113,-500.0,0.00027397,2]
[322228913,1712902240124,-500.0,0.00027397,2]
[322228914,1712902240134,-500.0,0.00027397,2]
[322228915,1712902240143,-500.0,0.00027397,2]
[322228916,1712902240152,-500.0,0.00027397,2]
[322228917,1712902240163,-500.0,0.00027397,2]
[322228918,1712902240172,-500.0,0.00027397,2]
[322228919,1712902240181,-500.0,0.00027397,2]
[322228920,1712902240189,-500.0,0.00027397,2]
[322228921,1712902240199,-500.0,0.00027397,2]
[322228922,1712902240208,-500.0,0.00027397,2]
[322228923,1712902240217,-500.0,0.00027397,2]
[322228924,1712902240228,-392.860171,0.00027397,2]
[322228925,1712902240239,-392.860171,0.00027397,2]
[322228926,1712902240249,-164.55119151,0.00027397,2]
[322228927,1712902240703,-228.30897949,0.00027397,2]
[322228928,1712902240713,-392.860171,0.00027397,2]
[322228929,1712902240723,-392.860171,0.00027397,2]
[322228930,1712902240732,-92.76957633,0.00027397,2]
[322228965,1712902265165,2616.74714093,0.0002105,2]
[322228966,1712902311720,245.60818928,0.00025,2]
[322228969,1712902656163,200.0,0.00026272,15]
[322228970,1712903217238,200.0,0.00026254,15]
[322228972,1712903227493,-446.33734182,0.00024172,2]
[322228973,1712903227519,-176.67842,0.00026122,2]
[322228974,1712903227545,-164.0,0.00027,2]
[322228975,1712903227573,-155.91156021,0.00027023,2]
[322228976,1712903227599,-620.00268459,0.00027098,2]
[322228977,1712903227624,-157.50619684,0.00027123,2]
[322228978,1712903227647,-656.8717219,0.00027297,2]
[322228979,1712903227671,-202.8732917,0.000273,2]
[322228980,1712903227696,-202.8732917,0.000273,2]
[322228981,1712903227721,-202.8732917,0.000273,2]
[322228982,1712903227746,-300.0,0.00027394,2]
[322228983,1712903227771,-300.0,0.00027394,2]
[322228984,1712903227795,-687.372286,0.00027395,2]
[322228985,1712903227822,-488.01479802,0.00027395,2]
[322228986,1712903227846,-168.16549082,0.00027395,2]
[322228987,1712903227870,-497.90370531,0.00027396,2]
[322228988,1712903227894,-248.06530852,0.00027396,2]
[322228989,1712903227917,-352.81675235,0.00027396,2]
[322228990,1712903227946,-398.50233424,0.00027396,2]
[322228991,1712903227972,-471.98725666,0.00027396,2]
[322228992,1712903227996,-504.63913786,0.00027397,2]
[322228993,1712903228019,-191.00232893,0.00027397,2]
[322228994,1712903228046,-500.0,0.00027397,2]
[322228995,1712903228070,-500.0,0.00027397,2]
[322228996,1712903228217,-503.76492396,0.00027397,2]
[322228997,1712903228241,-502.5540653,0.00027397,2]
[322228998,1712903228266,-500.0,0.00027397,2]
[322228999,1712903228292,-501.29234121,0.00027397,2]
[322229000,1712903228315,-501.84370308,0.00027397,2]
[322229001,1712903228341,-500.0,0.00027397,2]
[322229002,1712903228365,-500.0,0.00027397,2]
[322229003,1712903228390,-500.0,0.00027397,2]
[322229004,1712903228416,-501.22023626,0.00027397,2]
[322229005,1712903228441,-500.0,0.00027397,2]
[322229006,1712903228467,-280.40026869,0.00027397,2]
[322229007,1712903228491,-500.0,0.00027397,2]
[322229008,1712903228515,-501.07768905,0.00027397,2]
[322229009,1712903228539,-151.0,0.00027397,2]
[322229010,1712903228563,-151.0,0.00027397,2]
[322229011,1712903228587,-503.23930922,0.00027397,2]
[322229012,1712903228612,-501.11270418,0.00027397,2]
[322229013,1712903228637,-500.0,0.00027397,2]
[322229014,1712903228661,-345.4926459,0.00027397,2]
[322229015,1712903228684,-506.91560328,0.00027397,2]
[322229016,1712903228710,-500.0,0.00027397,2]
[322229017,1712903228737,-500.0,0.00027397,2]
[322229018,1712903228760,-500.0,0.00027397,2]
[322229019,1712903228785,-500.0,0.00027397,2]
[322229020,1712903228809,-500.0,0.00027397,2]
[322229021,1712903228834,-500.0,0.00027397,2]
[322229022,1712903228860,-500.0,0.00027397,2]
[322229023,1712903228886,-500.0,0.00027397,2]
[322229024,1712903228910,-500.0,0.00027397,2]
[322229025,1712903228935,-96.6236546,0.00027397,2]
[322229026,1712903278594,-761.64504719,0.00027297,3]
[322229027,1712903278620,-410.87926662,0.00027397,2]
[322229028,1712903278763,-502.94933097,0.00027397,2]
[322229029,1712903278789,-500.0,0.00027397,2]
[322229030,1712903278815,-500.0,0.00027397,2]
[322229031,1712903278842,-500.0,0.00027397,2]
[322229032,1712903278866,-500.0,0.00027397,2]
[322229033,1712903278891,-309.96424705,0.00027397,2]
[322229034,1712903278916,-500.0,0.00027397,2]
[322229035,1712903278943,-500.0,0.00027397,2]
[322229036,1712903278970,-500.0,0.00027397,2]
[322229037,1712903278994,-501.69568531,0.00027397,2]
[322229038,1712903279019,-500.0,0.00027397,2]
[322229039,1712903279044,-502.59425572,0.00027397,2]
[322229040,1712903279069,-504.31633005,0.00027397,2]
[322229041,1712903279092,-500.0,0.00027397,2]
[322229042,1712903279117,-503.20666225,0.00027397,2]
[322229043,1712903279141,-503.92033025,0.00027397,2]
[322229044,1712903279167,-500.0,0.00027397,2]
[322229045,1712903279191,-500.0,0.00027397,2]
[322229046,1712903279214,-234.87398539,0.00027397,2]
[322229047,1712903279238,-500.0,0.00027397,2]
[322229048,1712903279262,-500.0,0.00027397,2]
[322229049,1712903279286,-501.48988699,0.00027397,2]
[322229050,1712903279310,-1396.64,0.00027397,2]
[322229051,1712903279333,-500.0,0.00027397,2]
[322229052,1712903279357,-500.0,0.00027397,2]
[322229053,1712903279381,-500.0,0.00027397,2]
[322229054,1712903279406,-414.32159486,0.00027397,2]
[322229055,1712903279431,-500.0,0.00027397,2]
[322229056,1712903279458,-500.0,0.00027397,2]
[322229057,1712903279483,-502.04708757,0.00027397,2]
[322229058,1712903279507,-500.0,0.00027397,2]
[322229059,1712903279533,-500.0,0.00027397,2]
[322229060,1712903279559,-500.0,0.00027397,2]
[322229061,1712903279582,-500.0,0.00027397,2]
[322229062,1712903279606,-500.0,0.00027397,2]
[322229063,1712903279631,-500.0,0.00027397,2]
[322229064,1712903279654,-500.0,0.00027397,2]
[322229065,1712903279678,-433.31061169,0.00027397,2]
[322229066,1712903279702,-503.84959192,0.00027397,2]
[322229067,1712903279725,-500.0,0.00027397,2]
[322229068,1712903279749,-500.0,0.00027397,2]
[322229069,1712903279772,-154.23043007,0.00027397,2]
[322229070,1712903290086,-300.0,0.00027396,2]
[322229071,1712903290111,-300.0,0.00027396,2]
[322229072,1712903290137,-345.76956993,0.00027397,2]
[322229073,1712903290254,-539.05260431,0.00027397,2]
[322229074,1712903290279,-500.0,0.00027397,2]
[322229075,1712903290303,-501.07999425,0.00027397,2]
[322229076,1712903290331,-500.25247429,0.00027397,2]
[322229077,1712903290357,-502.41307117,0.00027397,2]
[322229078,1712903290382,-502.62676551,0.00027397,2]
[322229079,1712903290407,-503.13610208,0.00027397,2]
[322229080,1712903290438,-501.17112086,0.00027397,2]
[322229081,1712903290462,-500.0,0.00027397,2]
[322229082,1712903290485,-500.0,0.00027397,2]
[322229083,1712903290509,-585.79013156,0.00027397,2]
[322229084,1712903290532,-300.0,0.00027397,2]
[322229085,1712903290559,-522.7006987,0.00027397,2]
[322229086,1712903290585,-500.0,0.00027397,2]
[322229087,1712903290610,-151.0,0.00027397,2]
[322229088,1712903290637,-151.0,0.00027397,2]
[322229089,1712903290661,-211.242388,0.00027397,2]
[322229090,1712903290686,-500.0,0.00027397,2]
[322229091,1712903290713,-507.53640803,0.00027397,2]
[322229092,1712903290737,-1002.02315066,0.00027397,2]
[322229093,1712903290761,-500.0,0.00027397,2]
[322229094,1712903290787,-502.48952139,0.00027397,2]
[322229095,1712903290811,-502.00369439,0.00027397,2]
[322229096,1712903290836,-500.0,0.00027397,2]
[322229097,1712903290862,-500.0,0.00027397,2]
[322229098,1712903290887,-500.0,0.00027397,2]
[322229099,1712903290912,-500.0,0.00027397,2]
[322229100,1712903290937,-503.79327216,0.00027397,2]
[322229101,1712903290961,-517.54531501,0.00027397,2]
[322229102,1712903291010,-500.0,0.00027397,2]
[322229103,1712903291049,-500.0,0.00027397,2]
[322229104,1712903291075,-502.81809655,0.00027397,2]
[322229105,1712903291101,-500.0,0.00027397,2]
[322229106,1712903291127,-501.62875947,0.00027397,2]
[322229107,1712903291151,-502.38259859,0.00027397,2]
[322229108,1712903291176,-500.0,0.00027397,2]
[322229109,1712903291200,-500.0,0.00027397,2]
[322229110,1712903291224,-500.0,0.00027397,2]
[322229111,1712903291248,-500.0,0.00027397,2]
[322229112,1712903291273,-500.0,0.00027397,2]
[322229113,1712903291298,-500.0,0.00027397,2]
[322229114,1712903291325,-500.0,0.00027397,2]
[322229115,1712903291350,-500.0,0.00027397,2]
[322229116,1712903291375,-182.47860699,0.00027397,2]
[322229117,1712903300577,-317.52139301,0.00027397,2]
[322229118,1712903300603,-782.77,0.00027397,2]
[322229119,1712903300628,-782.77,0.00027397,2]
[322229120,1712903300742,-782.77,0.00027397,2]
[322229121,1712903300767,-782.77,0.00027397,2]
[322229122,1712903300792,-782.77,0.00027397,2]
[322229123,1712903300816,-782.77,0.00027397,2]
[322229124,1712903300841,-782.77,0.00027397,2]
[322229125,1712903300866,-782.77,0.00027397,2]
[322229126,1712903300889,-782.77,0.00027397,2]
[322229127,1712903300914,-502.17848948,0.00027397,2]
[322229128,1712903300938,-500.0,0.00027397,2]
[322229129,1712903300962,-500.0,0.00027397,2]
[322229130,1712903300986,-239.33352731,0.00027397,2]
[322229131,1712903301010,-506.59508596,0.00027397,2]
[322229132,1712903301035,-624.95533883,0.00027397,2]
[322229133,1712903301060,-151.0,0.00027397,2]
[322229134,1712903301084,-151.0,0.00027397,2]
[322229135,1712903301108,-151.0,0.00027397,2]
[322229136,1712903301132,-151.0,0.00027397,2]
[322229137,1712903301156,-151.0,0.00027397,2]
[322229138,1712903301180,-151.0,0.00027397,2]
[322229139,1712903301203,-151.0,0.00027397,2]
[322229140,1712903301229,-500.0,0.00027397,2]
[322229141,1712903301253,-151.0,0.00027397,2]
[322229142,1712903301277,-151.0,0.00027397,2]
[322229143,1712903301301,-388.84734539,0.00027397,2]
[322229144,1712903301324,-500.0,0.00027397,2]
[322229145,1712903301349,-500.0,0.00027397,2]
[322229146,1712903301373,-500.0,0.00027397,2]
[322229147,1712903301398,-500.0,0.00027397,2]
[322229148,1712903301434,-500.0,0.00027397,2]
[322229149,1712903301458,-501.14421717,0.00027397,2]
[322229150,1712903301483,-500.0,0.00027397,2]
[322229151,1712903301507,-503.04509204,0.00027397,2]
[322229152,1712903301532,-500.0,0.00027397,2]
[322229153,1712903301557,-500.0,0.00027397,2]
[322229154,1712903301581,-1277.42,0.00027397,2]
[322229155,1712903301605,-500.0,0.00027397,2]
[322229156,1712903301631,-500.0,0.00027397,2]
[322229157,1712903301656,-500.0,0.00027397,2]
[322229158,1712903301681,-507.99465319,0.00027397,2]
[322229159,1712903301706,-501.16022402,0.00027397,2]
[322229160,1712903301731,-503.46666839,0.00027397,2]
[322229161,1712903301756,-314.20127531,0.00027397,2]
[322229162,1712903301783,-50.1410338,0.00027397,2]
[322229163,1712903322255,-100.8589662,0.00027397,2]
[322229164,1712903322280,-500.0,0.00027397,2]
[322229165,1712903322306,-630.70824198,0.00027397,2]
[322229166,1712903322331,-151.0,0.00027397,2]
[322229167,1712903322355,-151.0,0.00027397,2]
[322229168,1712903322379,-151.0,0.00027397,2]
[322229169,1712903322403,-177.618387,0.00027397,2]
[322229170,1712903322442,-500.0,0.00027397,2]
[322229171,1712903322468,-500.96540924,0.00027397,2]
[322229172,1712903322494,-504.63413785,0.00027397,2]
[322229173,1712903322520,-361.1603774,0.00027397,2]
[322229174,1712903322546,-500.0,0.00027397,2]
[322229175,1712903322572,-500.0,0.00027397,2]
[322229176,1712903322598,-507.81918686,0.00027397,2]
[322229177,1712903322626,-500.0,0.00027397,2]
[322229178,1712903322655,-500.0,0.00027397,2]
[322229179,1712903322681,-502.6067113,0.00027397,2]
[322229180,1712903322707,-506.64861878,0.00027397,2]
[322229181,1712903322732,-500.0,0.00027397,2]
[322229182,1712903322757,-503.8295416,0.00027397,2]
[322229183,1712903322783,-507.67965804,0.00027397,2]
[322229184,1712903322809,-502.14378417,0.00027397,2]